bitfinex/quotes_BTCUSD_20240617
["timestamp","ask_amount","ask_price","bid_price","bid_amount"]
[1718651165178,1.22169146,66887.0,66886.0,0.009416]
[1718651165400,0.2354,66886.0,66881.0,0.009405]
[1718651165567,1.53244972,66882.0,66881.0,0.009405]
[1718651165714,2.51569863,66882.0,66881.0,0.009405]
[1718651165914,2.53869863,66882.0,66881.0,0.009405]
[1718651166126,4.54382163,66882.0,66881.0,0.009405]
[1718651166377,4.91640453,66882.0,66881.0,0.009405]
[1718651166797,4.77192453,66882.0,66881.0,0.009405]
[1718651167011,4.73229243,66882.0,66881.0,0.009405]
[1718651167230,3.98784243,66882.0,66881.0,0.009405]
[1718651167433,3.77850843,66882.0,66881.0,0.009405]
[1718651167594,3.79250843,66882.0,66881.0,0.009405]
[1718651167811,4.09154243,66882.0,66881.0,0.009405]
[1718651168214,1.046804,66870.0,66869.0,0.059405]
[1718651168413,1.64153816,66870.0,66869.0,0.009405]
[1718651168619,1.74153816,66870.0,66869.0,0.01633095]
[1718651168802,2.04062516,66870.0,66869.0,0.009405]
[1718651169002,2.42647442,66870.0,66869.0,0.009405]
[1718651169209,2.7677616,66870.0,66869.0,0.009405]
[1718651169414,4.1150336,66870.0,66869.0,0.009405]
[1718651169625,4.5624245,66870.0,66869.0,0.009405]
[1718651169848,4.3322435,66870.0,66869.0,0.009405]
[1718651170268,4.3462435,66870.0,66869.0,0.009405]
[1718651170491,3.8988526,66870.0,66869.0,0.009405]
[1718651170692,3.9128526,66870.0,66869.0,0.009405]
[1718651171326,3.6297326,66870.0,66869.0,0.009405]
[1718651171535,3.5774226,66870.0,66869.0,0.009405]
[1718651171739,2.92604714,66870.0,66869.0,0.009405]
[1718651171893,2.48721314,66870.0,66869.0,0.009405]
[1718651172094,2.47321314,66870.0,66869.0,0.009405]
[1718651172570,2.48721314,66870.0,66869.0,0.009405]
[1718651174235,2.47321314,66870.0,66869.0,0.009405]
[1718651174437,2.6399257,66870.0,66869.0,0.009405]
[1718651174660,2.9390127,66870.0,66869.0,0.009405]
[1718651175062,2.6399257,66870.0,66869.0,0.009405]
[1718651175272,2.6259257,66870.0,66869.0,0.009405]
[1718651175673,2.6399257,66870.0,66869.0,0.009405]
[1718651176099,2.6259257,66870.0,66869.0,0.009405]
[1718651176283,2.6399257,66870.0,66869.0,0.009405]
[1718651176461,2.6259257,66870.0,66869.0,0.009405]
[1718651176910,2.6399257,66870.0,66869.0,0.009405]
[1718651178627,2.64119834,66870.0,66869.0,0.009405]
[1718651180730,2.40479834,66870.0,66869.0,0.009405]
[1718651181318,2.7235,66870.0,66869.0,0.009405]
[1718651181521,2.424413,66870.0,66869.0,0.009405]
[1718651181917,2.42407117,66870.0,66869.0,0.009405]
[1718651182341,1.70772973,66870.0,66869.0,0.009405]
[1718651182582,1.92052973,66870.0,66869.0,0.009405]
[1718651182925,1.93295372,66870.0,66869.0,0.009405]
[1718651183576,1.91895372,66870.0,66869.0,0.009405]
[1718651184047,1.93295372,66870.0,66869.0,0.009405]
[1718651184271,2.08566628,66870.0,66869.0,0.009405]
[1718651184483,2.07166628,66870.0,66869.0,0.009405]
[1718651184683,2.23839516,66870.0,66869.0,0.009405]
[1718651184919,2.25239516,66870.0,66869.0,0.009405]
[1718651185132,2.55148216,66870.0,66869.0,0.009405]
[1718651185383,1.32561017,66870.0,66867.0,0.009405]
[1718651185619,1.32561017,66870.0,66858.0,0.009405]
[1718651185620,0.74784,66859.0,66858.0,0.009405]
[1718651185840,1.86919542,66859.0,66858.0,0.009405]
[1718651186060,2.15081842,66859.0,66858.0,0.009405]
[1718651186303,1.85168242,66859.0,66858.0,0.009405]
[1718651186733,1.69305942,66859.0,66858.0,0.009405]
[1718651186885,1.70705942,66859.0,66858.0,0.009405]
[1718651187881,1.84360142,66859.0,66858.0,0.009405]
[1718651188373,1.88496932,66859.0,66858.0,0.009405]
[1718651188576,1.72105942,66859.0,66858.0,0.009405]
[1718651188973,2.50938645,66859.0,66858.0,0.009405]
[1718651189187,1.96247545,66859.0,66858.0,0.009405]
[1718651189486,1.77108645,66859.0,66858.0,0.009405]
[1718651190038,1.96217845,66859.0,66858.0,0.009405]
[1718651190242,2.06093918,66859.0,66858.0,0.009405]
[1718651190468,1.86984718,66859.0,66858.0,0.009405]
[1718651190676,2.41573918,66859.0,66858.0,0.009405]
[1718651190874,2.20387018,66859.0,66858.0,0.009405]
[1718651191334,2.12097018,66859.0,66858.0,0.009405]
[1718651191924,1.55828645,66859.0,66858.0,0.009405]
[1718651192148,0.028,66859.0,66858.0,1.130616]
[1718651192341,0.028,66859.0,66858.0,1.67147041]
[1718651192613,0.028,66859.0,66858.0,1.37147041]
[1718651192832,0.028,66859.0,66858.0,0.99639869]
[1718651193197,0.149551,66867.0,66860.0,0.149565]
[1718651193442,0.3104226,66866.0,66860.0,0.149565]
[1718651193778,0.2128,66865.0,66861.0,0.00707082]
[1718651194356,0.2128,66865.0,66861.0,0.15663382]
[1718651194502,0.31042279,66864.0,66861.0,0.15663382]
[1718651194713,0.31042279,66864.0,66861.0,0.00707082]
[1718651194915,0.31042279,66864.0,66858.0,0.83377488]
[1718651194916,0.48634009,66864.0,66858.0,0.381905]
[1718651195128,0.362367,66860.0,66859.0,0.00707082]
[1718651195337,0.67278979,66860.0,66858.0,0.381905]
[1718651195541,0.31042279,66859.0,66858.0,0.381905]
[1718651195886,0.31042279,66859.0,66858.0,0.38895261]
[1718651196920,0.56477394,66859.0,66858.0,0.38895261]
[1718651197325,1.22735601,66859.0,66858.0,0.38895261]
[1718651197532,0.92822001,66859.0,66858.0,0.38895261]
[1718651197753,0.92822001,66859.0,66858.0,0.00704761]
[1718651197754,1.22735601,66859.0,66858.0,0.00704761]
[1718651197910,1.57611601,66859.0,66858.0,0.00704761]
[1718651198132,0.74792,66852.0,66851.0,0.21707573]
[1718651198327,1.02228486,66852.0,66851.0,0.22412334]
[1718651198729,1.02228486,66852.0,66851.0,0.21707573]
[1718651199436,1.47416542,66852.0,66851.0,0.21707573]
[1718651199615,0.72311686,66852.0,66851.0,0.21707573]
[1718651199845,1.02228486,66852.0,66851.0,0.21707573]
[1718651200001,1.62062086,66852.0,66851.0,0.21707573]
[1718651200400,1.32145286,66852.0,66851.0,0.22412334]
[1718651200802,1.48816542,66852.0,66851.0,0.21707573]
[1718651201032,1.51116542,66852.0,66851.0,0.21707573]
[1718651201201,1.35845286,66852.0,66851.0,0.21707573]
[1718651202840,0.58753286,66852.0,66851.0,0.21707573]
[1718651203041,0.37473286,66852.0,66851.0,0.22412194]
[1718651203255,0.73711686,66852.0,66851.0,0.22412194]
[1718651203619,1.33545286,66852.0,66851.0,0.22412194]
[1718651204023,1.33545286,66852.0,66851.0,0.21707573]
[1718651204763,1.34945286,66852.0,66851.0,0.21707573]
[1718651205667,1.39166204,66852.0,66851.0,0.21707573]
[1718651206267,1.39166204,66852.0,66851.0,0.21802173]
[1718651206676,1.34945286,66852.0,66851.0,0.21802173]
[1718651210278,0.79549074,66852.0,66851.0,0.21802173]
[1718651210494,1.0499818,66852.0,66851.0,0.21802173]
[1718651210695,1.09452599,66852.0,66851.0,0.22479446]
[1718651210818,1.09452599,66852.0,66851.0,1.10907973]
[1718651210819,0.3884298,66852.0,66851.0,1.10907973]
[1718651211020,0.3884298,66852.0,66851.0,1.71419646]
[1718651211220,0.33842279,66852.0,66851.0,1.11585246]
[1718651211532,0.33842279,66852.0,66851.0,1.41502446]
[1718651212126,0.33842279,66852.0,66851.0,1.56775334]
[1718651212338,0.33842279,66852.0,66851.0,0.96940934]
[1718651212537,0.33842279,66852.0,66851.0,1.26858134]
[1718651213521,0.33842279,66852.0,66851.0,1.56775334]
[1718651216153,0.33842279,66852.0,66851.0,1.58775334]
[1718651216292,0.028,66852.0,66851.0,1.56775334]
[1718651216986,0.33847933,66852.0,66851.0,1.56775334]
[1718651218513,0.028,66852.0,66851.0,1.88692534]
[1718651219580,0.33846188,66852.0,66851.0,1.88692534]
[1718651220140,0.028,66852.0,66851.0,1.88692534]
[1718651220540,0.028,66852.0,66851.0,1.86692534]
[1718651220763,0.028,66852.0,66851.0,0.81982334]
[1718651220947,0.33847298,66852.0,66851.0,0.96940934]
[1718651221145,0.028,66852.0,66851.0,1.26858134]
[1718651221353,0.33847432,66852.0,66851.0,1.26858134]
[1718651222316,0.33847432,66852.0,66851.0,1.56775334]
[1718651223761,0.33847432,66852.0,66851.0,0.81982334]
[1718651224074,0.33847432,66852.0,66851.0,1.26858134]
[1718651225320,0.33847432,66852.0,66851.0,0.96940934]
[1718651225559,0.33847432,66852.0,66851.0,1.26858134]
[1718651226363,0.31047432,66852.0,66851.0,1.26858134]
[1718651226560,0.31048054,66857.0,66852.0,0.149583]
[1718651226781,0.36256358,66856.0,66852.0,0.30231188]
[1718651227090,0.36256358,66855.0,66853.0,0.00676681]
[1718651227288,0.81130158,66854.0,66853.0,0.00676681]
[1718651227584,0.81130158,66854.0,66851.0,0.21802173]
[1718651227585,0.149584,66852.0,66851.0,0.21802173]
[1718651227731,0.81131558,66852.0,66851.0,0.21802173]
[1718651228350,0.36256358,66852.0,66851.0,0.21802173]
[1718651228559,0.37656358,66852.0,66851.0,0.21802173]
[1718651229180,0.36256358,66852.0,66851.0,0.21802173]
[1718651229391,0.52614758,66852.0,66851.0,0.21802173]
[1718651229635,0.37656358,66852.0,66851.0,0.21802173]
[1718651229842,0.37656358,66852.0,66851.0,0.22476424]
[1718651230905,0.37656358,66852.0,66851.0,0.37435024]
[1718651231069,0.37656358,66852.0,66851.0,0.67352224]
[1718651231070,0.39056358,66852.0,66851.0,0.67352224]
[1718651234069,0.39056358,66852.0,66851.0,0.67352224]
[1718651234698,0.39056358,66852.0,66851.0,0.97269424]
[1718651235121,0.39056358,66852.0,66851.0,0.67352224]
[1718651235615,0.08008226,66852.0,66851.0,0.97269424]
[1718651235764,0.08008226,66852.0,66851.0,0.99269424]
[1718651235976,0.39056197,66852.0,66851.0,0.67352224]
[1718651237749,0.39056197,66852.0,66851.0,0.97269424]
[1718651238773,0.08008226,66852.0,66851.0,0.97269424]
[1718651239103,0.08008226,66852.0,66851.0,0.99269424]
[1718651239713,0.39056162,66852.0,66851.0,0.99269424]
[1718651240404,0.39047661,66852.0,66851.0,0.99269424]
[1718651241295,0.39047661,66852.0,66851.0,1.29186624]
[1718651241507,0.39047661,66852.0,66851.0,0.99269424]
[1718651243088,0.39047661,66852.0,66851.0,1.29186624]
[1718651243284,0.33847936,66852.0,66851.0,1.29186624]
[1718651243488,0.33846264,66852.0,66851.0,0.99269424]
[1718651243896,0.33846264,66852.0,66851.0,1.29186624]
[1718651244748,0.33846264,66852.0,66851.0,1.44459512]
[1718651244951,0.028,66852.0,66851.0,1.44459512]
[1718651245645,0.014,66852.0,66851.0,1.44459512]
[1718651246155,0.028,66852.0,66851.0,2.19493912]
[1718651246354,0.00086,66858.0,66857.0,1.169007]
[1718651246612,0.00086,66858.0,66857.0,2.14138088]
[1718651246802,0.00086,66858.0,66857.0,2.57139927]
[1718651247104,0.00086,66858.0,66857.0,2.76519319]
[1718651247302,0.00086,66858.0,66857.0,2.77139927]
[1718651248629,0.01186,66858.0,66857.0,2.77239927]
[1718651249091,0.00086,66858.0,66857.0,2.68629927]
[1718651249297,0.00086,66858.0,66857.0,2.78539927]
[1718651249298,0.00186,66858.0,66857.0,2.78539927]
[1718651249503,0.00186,66858.0,66857.0,2.70029927]
[1718651250105,0.00286,66858.0,66857.0,2.71429927]
[1718651250315,0.00286,66858.0,66857.0,2.2910006]
[1718651251287,0.00286,66858.0,66857.0,2.5901456]
[1718651257416,0.00286,66858.0,66857.0,2.8892906]
[1718651257815,0.00286,66858.0,66857.0,3.01342503]
[1718651258116,0.00286,66858.0,66857.0,2.8892906]
[1718651258339,0.00286,66858.0,66857.0,2.9491346]
[1718651262184,0.00286,66858.0,66857.0,2.9688626]
[1718651263568,0.00286,66858.0,66857.0,2.6697176]
[1718651265150,0.00286,66858.0,66857.0,1.7233286]
[1718651265348,0.41866,66858.0,66857.0,0.3370206]
[1718651265568,0.41866,66858.0,66857.0,0.6561656]
[1718651265787,0.41866,66858.0,66857.0,0.3570206]
[1718651266009,0.41866,66858.0,66857.0,0.1874486]
[1718651266185,0.41766,66858.0,66857.0,0.3230206]
[1718651266364,0.41666,66858.0,66857.0,0.3090206]
[1718651266565,0.42966,66858.0,66857.0,0.6091656]
[1718651266845,0.42966,66858.0,66857.0,0.15729172]
[1718651266985,0.41666,66858.0,66857.0,0.00671972]
[1718651267414,0.4333,66857.0,66854.0,0.149579]
[1718651267616,0.4333,66857.0,66856.0,0.149575]
[1718651267818,0.4333,66857.0,66854.0,0.06867677]
[1718651267819,0.4333,66857.0,66853.0,0.29916]
[1718651268026,0.4333,66857.0,66854.0,0.15272888]
[1718651268556,0.4333,66857.0,66856.0,0.149575]
[1718651268763,0.4333,66857.0,66856.0,0.448725]
[1718651269708,0.4473,66857.0,66856.0,0.448725]
[1718651270626,0.149576,66856.0,66851.0,0.21802173]
[1718651270838,0.4316,66855.0,66854.0,0.149579]
[1718651271056,0.4316,66855.0,66852.0,0.15272888]
[1718651271225,0.4316,66855.0,66851.0,0.21802173]
[1718651271850,0.4316,66855.0,66851.0,0.36760673]
[1718651272285,0.4316,66855.0,66852.0,0.149582]
[1718651273011,0.4316,66855.0,66852.0,0.000946]
[1718651273419,0.4316,66855.0,66852.0,0.150528]
[1718651273841,0.4446,66855.0,66852.0,0.151528]
[1718651274046,0.4446,66855.0,66854.0,0.747897]
[1718651274253,0.4446,66855.0,66852.0,0.001946]
[1718651274424,0.4456,66855.0,66852.0,0.001946]
[1718651274625,0.595178,66855.0,66852.0,0.001946]
[1718651274822,0.4316,66855.0,66853.0,0.0066581]
[1718651275947,0.4446,66855.0,66853.0,0.0066581]
[1718651276144,0.4446,66855.0,66853.0,0.1562391]
[1718651276346,0.4586,66855.0,66853.0,0.1562391]
[1718651276586,0.4316,66855.0,66853.0,0.1562391]
[1718651276967,0.4446,66855.0,66853.0,0.1572391]
[1718651277344,0.4446,66855.0,66853.0,0.0076581]
[1718651277547,0.149579,66854.0,66853.0,0.0086581]
[1718651277751,0.149579,66854.0,66853.0,0.002]
[1718651278119,0.4586,66855.0,66853.0,0.002]
[1718651278328,0.4586,66855.0,66854.0,0.0066581]
[1718651278770,0.907331,66855.0,66854.0,0.0066581]
[1718651278972,0.894331,66855.0,66854.0,0.0066581]
[1718651279306,0.894331,66855.0,66853.0,0.001]
[1718651279307,0.448738,66854.0,66853.0,0.001]
[1718651279524,0.448744,66853.0,66852.0,0.000946]
[1718651279750,1.48737,66853.0,66852.0,0.000946]
[1718651279969,1.79786274,66853.0,66852.0,0.000946]
[1718651280852,1.54621655,66853.0,66852.0,0.000946]
[1718651281105,1.78191573,66853.0,66852.0,0.000946]
[1718651281338,2.24779129,66853.0,66852.0,0.001946]
[1718651281521,2.09507873,66853.0,66852.0,0.001946]
[1718651281736,1.79591573,66853.0,66852.0,0.001946]
[1718651281938,1.58321573,66853.0,66852.0,0.001946]
[1718651282143,1.79591573,66853.0,66852.0,0.001946]
[1718651282395,0.83530873,66853.0,66852.0,0.001946]
[1718651282621,0.50181599,66853.0,66852.0,0.001946]
[1718651282821,0.917044,66853.0,66852.0,0.00835986]
[1718651283022,1.216207,66853.0,66852.0,0.00835986]
[1718651283235,1.216207,66853.0,66852.0,0.001946]
[1718651286510,1.202207,66853.0,66852.0,0.000946]
[1718651286711,1.188207,66853.0,66852.0,0.000946]
[1718651286954,1.202207,66853.0,66852.0,0.001946]
[1718651287164,1.236207,66853.0,66852.0,0.001946]
[1718651287304,3.40914045,66853.0,66852.0,0.000946]
[1718651287733,3.83678058,66853.0,66852.0,0.001946]
[1718651287945,0.587806,66842.0,66841.0,0.009405]
[1718651288145,0.2,66833.0,66832.0,0.009405]
[1718651288357,0.790826,66833.0,66832.0,0.009405]
[1718651288577,1.24150478,66833.0,66832.0,0.009405]
[1718651288781,1.39113078,66833.0,66832.0,0.009405]
[1718651289348,1.080526,66833.0,66832.0,0.009405]
[1718651289567,0.6309,66833.0,66832.0,0.607919]
[1718651289779,0.6309,66833.0,66832.0,0.757547]
[1718651289780,0.4182,66833.0,66832.0,0.757547]
[1718651290039,0.4182,66833.0,66832.0,0.01592826]
[1718651290260,0.4182,66833.0,66832.0,0.16555626]
[1718651290460,0.4182,66833.0,66832.0,0.01592826]
[1718651290788,0.745453,66833.0,66832.0,0.01592826]
[1718651290993,0.5179434,66833.0,66832.0,0.01592826]
[1718651291303,0.881079,66833.0,66832.0,0.009405]
[1718651291508,0.895079,66833.0,66832.0,0.009405]
[1718651291713,0.581826,66833.0,66832.0,0.009405]
[1718651292097,0.4462,66833.0,66832.0,0.159033]
[1718651292295,0.4462,66833.0,66832.0,0.16556179]
[1718651292506,0.028,66833.0,66832.0,0.46481879]
[1718651292707,0.028,66833.0,66832.0,0.76407579]
[1718651292931,0.014,66833.0,66832.0,1.08333279]
[1718651293137,0.014,66833.0,66832.0,1.23606167]
[1718651293334,0.028,66833.0,66832.0,1.23471859]
[1718651293542,0.014,66833.0,66832.0,0.91680467]
[1718651293717,0.014,66833.0,66832.0,0.93680467]
[1718651293923,0.1836,66842.0,66836.0,0.299239]
[1718651294127,0.1836,66842.0,66838.0,0.149614]
[1718651294582,0.1836,66842.0,66839.0,0.00652978]
[1718651294783,0.13086,66858.0,66839.0,0.00652978]
[1718651294784,0.4246,66849.0,66848.0,0.149592]
[1718651294988,0.4246,66849.0,66842.0,0.299212]
[1718651295139,0.149593,66848.0,66843.0,0.12420553]
[1718651295360,0.149595,66847.0,66844.0,0.13073531]
[1718651295562,0.149595,66847.0,66845.0,0.12420553]
[1718651295758,0.149595,66847.0,66846.0,0.12420553]
[1718651295965,0.149595,66847.0,66846.0,0.13073531]
[1718651296373,0.149593,66848.0,66846.0,0.13073531]
[1718651296593,0.338593,66848.0,66847.0,0.12420553]
[1718651296797,1.58202611,66848.0,66847.0,0.12420553]
[1718651297007,1.58202611,66848.0,66832.0,0.009405]
[1718651297008,0.149615,66838.0,66832.0,0.009405]
[1718651297234,0.4246,66841.0,66833.0,0.32852159]
[1718651297432,0.574224,66834.0,66833.0,0.33505137]
[1718651297663,0.4246,66834.0,66833.0,0.33505137]
[1718651297864,0.198,66838.0,66837.0,0.149617]
[1718651298092,0.198,66838.0,66837.0,0.27383701]
[1718651298396,0.198,66838.0,66837.0,0.28036679]
[1718651299113,0.212,66838.0,66837.0,0.28036679]
[1718651299285,0.212,66838.0,66837.0,0.48466226]
[1718651299479,0.198,66838.0,66837.0,0.48466226]
[1718651299736,0.198,66838.0,66837.0,1.08313226]
[1718651300061,0.198,66838.0,66837.0,1.0651607]
[1718651300498,0.014,66838.0,66837.0,1.3643957]
[1718651300705,0.014,66838.0,66837.0,1.0851607]
[1718651300903,0.014,66838.0,66837.0,0.7659257]
[1718651301102,0.014,66838.0,66837.0,0.4666907]
[1718651301524,0.014,66838.0,66837.0,0.7659257]
[1718651301695,0.014,66838.0,66837.0,0.3170737]
[1718651302100,0.4413,66838.0,66837.0,0.3170737]
[1718651302301,0.4553,66838.0,66837.0,0.3170737]
[1718651302504,0.4413,66838.0,66837.0,0.3170737]
[1718651302986,0.4553,66838.0,66837.0,0.3170737]
[1718651303156,0.4553,66838.0,66837.0,0.14872073]
[1718651303301,0.4553,66838.0,66837.0,0.3350435]
[1718651303503,0.4413,66838.0,66837.0,0.3350435]
[1718651303698,0.4553,66838.0,66837.0,0.3350435]
[1718651304119,0.4553,66838.0,66837.0,0.13074979]
[1718651304320,0.4553,66838.0,66837.0,0.28130179]
[1718651304321,0.4273,66838.0,66837.0,0.28130179]
[1718651304520,0.4273,66838.0,66837.0,0.48559926]
[1718651304723,0.4273,66838.0,66837.0,0.46762832]
[1718651304724,0.4553,66838.0,66837.0,0.46762832]
[1718651304930,0.4553,66838.0,66837.0,0.31801132]
[1718651305127,0.4413,66838.0,66837.0,0.31801132]
[1718651305331,0.4553,66838.0,66837.0,0.46762832]
[1718651307646,0.4553,66838.0,66837.0,0.46761856]
[1718651309409,0.4553,66838.0,66837.0,0.46761819]
[1718651309604,0.75453,66838.0,66837.0,0.31800119]
[1718651309780,1.2146956,66838.0,66837.0,0.31800119]
[1718651309972,0.85118602,66838.0,66837.0,0.31800119]
[1718651310179,0.85118602,66838.0,66837.0,0.33597321]
[1718651310393,1.59926102,66838.0,66837.0,0.13167934]
[1718651310596,1.89849102,66838.0,66837.0,0.13167934]
[1718651310801,1.89849102,66838.0,66837.0,0.12514956]
[1718651311454,1.89849102,66838.0,66837.0,0.12516847]
[1718651311861,2.4934499,66838.0,66837.0,0.12516847]
[1718651312182,2.1942199,66838.0,66837.0,0.000935]
[1718651312806,2.24210476,66838.0,66837.0,0.000935]
[1718651313230,2.22210476,66838.0,66837.0,0.000935]
[1718651313376,2.24210476,66838.0,66837.0,0.000935]
[1718651313721,1.162332,66833.0,66832.0,0.00034]
[1718651313931,1.86129516,66833.0,66832.0,0.00034]
[1718651314076,2.16054816,66833.0,66832.0,0.00034]
[1718651314688,2.18054816,66833.0,66832.0,0.00034]
[1718651315176,3.17707404,66833.0,66832.0,0.00034]
[1718651315387,3.10473204,66833.0,66832.0,0.00034]
[1718651315610,2.73253004,66833.0,66832.0,0.00034]
[1718651315843,3.12573004,66833.0,66832.0,0.00034]
[1718651316063,2.94392613,66833.0,66832.0,0.00034]
[1718651316579,2.95792613,66833.0,66832.0,0.00034]
[1718651316775,2.74661213,66833.0,66832.0,0.00034]
[1718651317474,2.76061213,66833.0,66832.0,0.00034]
[1718651318130,2.59389957,66833.0,66832.0,0.00034]
[1718651318352,2.60789957,66833.0,66832.0,0.00034]
[1718651318582,2.08194657,66833.0,66832.0,0.00034]
[1718651318804,2.30864657,66833.0,66832.0,0.00034]
[1718651319024,2.29464657,66833.0,66832.0,0.00034]
[1718651319457,2.30864657,66833.0,66832.0,0.00034]
[1718651319674,2.42072434,66833.0,66832.0,0.00034]
[1718651320102,2.71997734,66833.0,66832.0,0.00034]
[1718651320318,2.70597734,66833.0,66832.0,0.00034]
[1718651320544,2.40672434,66833.0,66832.0,0.00034]
[1718651320750,2.69197734,66833.0,66832.0,0.00034]
[1718651321185,1.65663,66827.0,66826.0,0.0135226]
[1718651321395,2.76749157,66827.0,66826.0,0.0135226]
[1718651321607,2.76309157,66827.0,66826.0,0.0135226]
[1718651322461,2.79109157,66827.0,66826.0,0.0085226]
[1718651322952,2.49181157,66827.0,66826.0,0.0085226]
[1718651323592,2.61971157,66827.0,66826.0,0.0085226]
[1718651323803,2.40651157,66827.0,66826.0,0.0085226]
[1718651324016,2.75572348,66827.0,66826.0,0.0085226]
[1718651324484,2.59971157,66827.0,66826.0,0.0085226]
[1718651324709,2.23056157,66827.0,66826.0,0.0085226]
[1718651325137,2.52984157,66827.0,66826.0,0.0085226]
[1718651325384,2.76324157,66827.0,66826.0,0.0085226]
[1718651326250,2.85311157,66827.0,66826.0,0.0085226]
[1718651326465,3.00582413,66827.0,66826.0,0.0085226]
[1718651326686,2.23076157,66827.0,66826.0,0.0085226]
[1718651326899,1.55785269,66827.0,66826.0,0.0085226]
[1718651327136,1.77105269,66827.0,66826.0,0.0085226]
[1718651327345,1.65713269,66827.0,66826.0,0.0085226]
[1718651327559,2.16961269,66827.0,66826.0,0.0085226]
[1718651327766,2.15561269,66827.0,66826.0,0.0085226]
[1718651327977,1.55705269,66827.0,66826.0,0.0085226]
[1718651328195,1.87033269,66827.0,66826.0,0.0085226]
[1718651328441,0.33863269,66827.0,66826.0,0.0085226]
[1718651328657,0.014,66827.0,66826.0,0.4574486]
[1718651328861,0.31060836,66837.0,66826.0,0.01510246]
[1718651329072,0.4473,66838.0,66826.0,0.31438646]
[1718651329073,0.014,66827.0,66826.0,0.31438646]
[1718651329316,0.028,66827.0,66826.0,0.0085226]
[1718651329518,0.028,66827.0,66826.0,0.01510246]
[1718651329519,0.014,66827.0,66826.0,0.01510246]
[1718651329735,0.29928,66827.0,66826.0,0.01510246]
[1718651329942,0.46292,66827.0,66826.0,0.01510246]
[1718651330152,1.44830624,66827.0,66826.0,0.01510246]
[1718651330360,1.13502624,66827.0,66826.0,0.0085226]
[1718651330782,0.84974624,66827.0,66826.0,0.0085226]
[1718651331221,0.77352744,66827.0,66826.0,0.0085226]
[1718651331436,0.149645,66825.0,66823.0,0.14405872]
[1718651331922,0.149642,66826.0,66824.0,0.00657986]
[1718651332125,0.31061895,66825.0,66824.0,0.00657986]
[1718651332793,0.32461895,66825.0,66824.0,0.00657986]
[1718651333253,0.31061895,66825.0,66824.0,0.00657986]
[1718651333482,0.014,66825.0,66824.0,0.00657986]
[1718651333707,0.32461895,66825.0,66824.0,0.00657986]
[1718651335456,0.47426295,66825.0,66824.0,0.00657986]
[1718651335717,0.32461895,66825.0,66824.0,0.00657986]
[1718651336376,0.33861895,66825.0,66824.0,0.00657986]
[1718651337611,0.33861895,66825.0,66824.0,0.75481186]
[1718651337975,0.33861895,66825.0,66824.0,0.65051886]
[1718651338414,0.48826295,66825.0,66824.0,0.20157986]
[1718651338669,0.48826295,66825.0,66824.0,0.00657986]
[1718651338670,0.56701624,66825.0,66824.0,0.00657986]
[1718651338881,1.37595424,66825.0,66824.0,0.00657986]
[1718651339082,0.748232,66824.0,66823.0,0.14500472]
[1718651339228,1.05885095,66824.0,66823.0,0.14500472]
[1718651340462,1.09285095,66824.0,66823.0,0.14500472]
[1718651340641,1.10687703,66824.0,66823.0,0.14500472]
[1718651340867,2.81256191,66824.0,66823.0,0.14500472]
[1718651341120,2.66110359,66824.0,66823.0,0.14500472]
[1718651341329,3.65622421,66824.0,66823.0,0.14500472]
[1718651341556,3.16767759,66824.0,66823.0,0.14500472]
[1718651341777,3.22033021,66824.0,66823.0,0.14500472]
[1718651342211,3.21211285,66824.0,66823.0,0.14500472]
[1718651342482,3.67316214,66824.0,66823.0,0.14500472]
[1718651342711,0.968332,66815.0,66814.0,0.009405]
[1718651342956,0.149693,66803.0,66802.0,0.104405]
[1718651343173,1.34960888,66803.0,66802.0,0.104405]
[1718651343410,0.31064503,66803.0,66802.0,0.104405]
[1718651343640,0.51433046,66815.0,66803.0,0.4406]
[1718651343641,0.31071922,66806.0,66803.0,0.4406]
[1718651343834,0.1864,66812.0,66803.0,0.4406]
[1718651343835,0.31071897,66805.0,66803.0,0.4406]
[1718651344030,0.1,66811.0,66804.0,0.00730089]
[1718651344237,0.31070642,66810.0,66804.0,0.00730089]
[1718651344433,0.41070642,66809.0,66804.0,0.00730089]
[1718651344694,0.31070642,66808.0,66803.0,0.4406]
[1718651344893,0.31070642,66808.0,66805.0,0.00730089]
[1718651345016,0.31070642,66808.0,66803.0,0.4406]
[1718651345215,0.31070642,66808.0,66806.0,0.00730089]
[1718651345457,0.31070642,66808.0,66803.0,0.4406]
[1718651345678,0.31070642,66808.0,66803.0,0.590293]
[1718651345902,0.46038942,66808.0,66803.0,0.590293]
[1718651346137,0.31070642,66807.0,66803.0,0.739985]
[1718651346362,0.01907086,66815.0,66809.0,0.02]
[1718651346645,0.40091256,66824.0,66810.0,0.1926]
[1718651346646,0.149654,66821.0,66810.0,0.1926]
[1718651346768,0.48330511,66820.0,66813.0,0.149669]
[1718651346968,0.46030811,66819.0,66811.0,0.449025]
[1718651347257,0.023,66820.0,66811.0,0.449025]
[1718651347258,0.31064911,66818.0,66811.0,0.149674]
[1718651347391,0.46031111,66817.0,66811.0,0.149674]
[1718651347587,0.31064911,66816.0,66812.0,0.248]
[1718651347803,0.014,66815.0,66812.0,0.397673]
[1718651348006,0.014,66815.0,66812.0,0.248]
[1718651348207,0.023,66820.0,66814.0,0.07593072]
[1718651348590,0.00086,66825.0,66824.0,0.149646]
[1718651348725,0.00086,66825.0,66814.0,0.149668]
[1718651348726,0.149656,66820.0,66814.0,0.149668]
[1718651348922,0.299333,66816.0,66812.0,0.248]
[1718651349161,0.2132,66823.0,66812.0,0.248]
[1718651349358,0.149668,66815.0,66812.0,0.248]
[1718651349574,0.149663,66817.0,66812.0,0.248]
[1718651349795,0.2132,66823.0,66821.0,0.149652]
[1718651350060,0.31063958,66822.0,66818.0,0.149658]
[1718651350224,0.31063958,66821.0,66812.0,0.248]
[1718651350439,0.31063958,66820.0,66819.0,0.00729076]
[1718651350645,0.31063958,66820.0,66814.0,0.149667]
[1718651350850,0.32463958,66820.0,66813.0,0.299339]
[1718651351139,0.014,66820.0,66817.0,0.149661]
[1718651351365,0.014,66820.0,66812.0,0.248]
[1718651351366,0.149656,66820.0,66814.0,0.149668]
[1718651351575,0.149661,66818.0,66812.0,0.268]
[1718651351714,0.01968923,66825.0,66817.0,0.14966]
[1718651351715,0.149647,66824.0,66817.0,0.14966]
[1718651351920,0.01968923,66825.0,66814.0,0.02]
[1718651351921,0.014,66820.0,66814.0,0.02]